Workbook

Sheet 5資料
A1: ５ 資料
A2: 館名 | C2: 資 料 | O2: 人口１人当 蔵書冊数 | P2: システム未登録 コレクション
C3: 蔵書冊数 | F3: 年間受入冊数 | J3: 開架図書冊数 | K3: 開架率 | L3: 年間除籍冊数 | M3: 受入雑誌数 | N3: 受入新聞数
D4: うち児童 | E4: うち外国語 | G4: うち購入 冊数 | H4: うち児童 | I4: うち外国語
C6: 冊 | D6: 冊 | E6: 冊 | F6: 冊 | G6: 冊 | H6: 冊 | I6: 冊 | J6: 冊 | K6: ％ | L6: 冊 | M6: 種 | N6: 種 | O6: 冊 | S6: 人口
A7: 県立長野 | C7: 759988 | D7: 98324 | E7: 2868 | F7: 12904 | G7: 8535 | H7: 1304 | I7: 0 | J7: 123202 | K7: =J7/C7*100 -> 16.21104544 | L7: 56 | M7: 741 | N7: 95 | O7: =C7/S7 -> 0.378546627 | P7: 有 | Q7: 関口文庫、威徳院文庫 | S7: 2007647 | T7: 県立長野
A8: 長野市立長野 | C8: 690098 | D8: 123051 | E8: 559 | F8: 15330 | G8: 14387 | H8: 3210 | I8: 43 | J8: 229859 | K8: =J8/C8*100 -> 33.30816783 | L8: 8063 | M8: 145 | N8: 16 | O8: =(C8+C9)/S8 -> 2.967129772 | P8: 無 | S8: 365072 | T8: 長野市立長野
A9: 長野市立南部 | C9: 393118 | D9: 114707 | E9: - | F9: 15782 | G9: 15032 | H9: 2106 | I9: - | J9: 242712 | K9: =J9/C9*100 -> 61.74024084 | L9: 13190 | M9: 128 | N9: 14 | O9: =C9/S9 ->  | P9: 無 | T9: 長野市立南部
A10: 松本市中央 | C10: 663626 | D10: 155476 | E10: 7508 | F10: 20514 | G10: 18285 | H10: 3994 | I10: 224 | J10: 273043 | K10: =J10/C10*100 -> 41.14410828 | L10: 15477 | M10: 178 | N10: 25 | O10: =(C10+C11+C12+C13+C14+C15+C16+C17+C18+C19+C20)/S10 -> 5.355711083 | P10: 有 | Q10: 小穴文庫、石曽根文庫、池上文庫、浅井冽文庫 | S10: 238615 | T10: 松本市中央
B11: あがたの森 | C11: 27607 | D11: 12850 | E11: 48 | F11: 1258 | G11: 1220 | H11: 413 | I11: 2 | J11: 21209 | K11: =J11/C11*100 -> 76.82471837 | L11: 914 | M11: 13 | N11: 5 | P11: 無 | U11: あがたの森
B12: 鎌田 | C12: 33698 | D12: 14744 | E12: 50 | F12: 1539 | G12: 1530 | H12: 463 | I12: 0 | J12: 33205 | K12: 98.53700516 | L12: 850 | M12: 12 | N12: 5 | P12: 無 | U12: 西部
B13: 南部 | C13: 74542 | D13: 29881 | E13: 533 | F13: 4504 | G13: 4353 | H13: 1289 | I13: 4 | J13: 70085 | K13: 94.02082048 | L13: 2326 | M13: 33 | N13: 9 | P13: 無 | U13: 南部
B14: 寿台 | C14: 29666 | D14: 12799 | E14: 188 | F14: 1264 | G14: 1220 | H14: 428 | I14: 2 | J14: 28822 | K14: 97.15499225 | L14: 1134 | M14: 11 | N14: 5 | P14: 無 | U14: 寿台
B15: 本郷 | C15: 36525 | D15: 17007 | E15: 176 | F15: 1742 | G15: 1658 | H15: 751 | I15: 0 | J15: 35338 | K15: 96.75017112 | L15: 1190 | M15: 10 | N15: 5 | P15: 無 | U15: 本郷
B16: 中山文庫 | C16: 169631 | D16: 25397 | E16: 77 | F16: 1474 | G16: 1446 | H16: 586 | I16: 2 | J16: 34380 | K16: 20.26752186 | L16: 315 | M16: 12 | N16: 5 | P16: 無 | U16: 中山文庫
B17: 島内 | C17: 39317 | D17: 14804 | E17: 134 | F17: 1696 | G17: 1668 | H17: 575 | I17: 0 | J17: 38079 | K17: 96.85123483 | L17: 1875 | M17: 14 | N17: 6 | P17: 無 | U17: 島内
B18: 空港 | C18: 47745 | D18: 17666 | E18: 170 | F18: 2107 | G18: 2059 | H18: 690 | I18: 0 | J18: 47498 | K18: 99.48266834 | L18: 1024 | M18: 11 | N18: 5 | P18: 無 | U18: 空港
B19: 波田 | C19: 100206 | D19: 34934 | E19: 573 | F19: 2852 | G19: 2712 | H19: 869 | I19: 2 | J19: 62404 | K19: 62.27571203 | L19: 2584 | M19: 39 | N19: 9 | P19: 無 | U19: 波田
B20: 梓川 | C20: 55390 | D20: 20271 | E20: 277 | F20: 1654 | G20: 1615 | H20: 615 | I20: 2 | J20: 39922 | K20: 72.07438166 | L20: 926 | M20: 23 | N20: 6 | P20: 無 | U20: 波田
A21: 上田市立上田 | C21: 330508 | D21: 74991 | F21: 6658 | G21: 5879 | H21: 1773 | I21: 0 | J21: 162063 | K21: 49.03451656 | L21: 2826 | M21: 73 | N21: 20 | O21: =(C21+C22+C23+C24)/S21 -> 4.06619965 | P21: 有 | Q21: 花月文庫他 | S21: 151315 | T21: 上田市立上田
A22: 上田市立丸子 | C22: 141541 | D22: 39726 | E22: 188 | F22: 3703 | G22: 3064 | H22: 1297 | I22: 0 | J22: 101535 | K22: 71.73539822 | L22: 165 | M22: 44 | N22: 10 | O22: =C22/S22 ->  | P22: 有 | Q22: 丸子図書館 稀覯本（戦争編） | T22: 上田市立丸子金子
A23: 上田情報ライブラリー | C23: 64884 | D23: 8087 | E23: 1266 | F23: 2357 | G23: 2184 | H23: 129 | I23: 0 | J23: 48445 | K23: 74.66401578 | L23: 2363 | M23: 146 | N23: 35 | O23: =(C23+C24)/S23 ->  | P23: 無 | T23: 上田情報ライブラリー
A24: 上田市立真田 | C24: 78344 | D24: 20730 | E24: 342 | G24: 3001 | H24: 1123 | I24: 0 | J24: 50226 | K24: 64.10956806 | L24: 14 | M24: 29 | N24: 12 | O24: =C24/S24 ->  | P24: 無 | T24: 上 田 市 立 真 田
A25: 市立岡谷 | C25: 234659 | D25: 103895 | E25: 1741 | F25: 5172 | G25: 4248 | H25: 2496 | I25: 36 | J25: 145294 | K25: 61.91707968 | L25: 4594 | M25: 76 | N25: 11 | O25: =C25/S25 -> 5.072392028 | P25: 無 | S25: 46262 | T25: 市立岡谷
A26: 飯田市立中央 | C26: 379127 | D26: 77303 | E26: 3039 | F26: 8451 | G26: 7267 | H26: 1248 | I26: 112 | J26: 148536 | K26: 39.17842834 | L26: 6121 | M26: 202 | N26: 21 | O26: =(C26+C27+C28+C29+C30+C31+C32+C33+C34+C35+C36+C37+C38+C39+C40+C41+C42+C43+C44)/S26 -> 8.497410799 | P26: 有 | Q26: 補足ファイルに記入 | S26: 95010 | T26: 飯田市立中央
B27: 羽場分館 | C27: 10913 | D27: 6560 | F27: 194 | G27: 179 | H27: 86 | I27: 0 | J27: 10913 | K27: =J27/C27*100 -> 100 | L27: 236 | M27: 7 | O27: =C27/S27 ->  | P27: 無 | U27: 上郷
B28: 丸山分館 | C28: 10917 | D28: 6897 | F28: 201 | G28: 179 | H28: 110 | I28: 0 | J28: 10917 | K28: 100 | L28: 371 | M28: 11 | P28: 無 | U28: 鼎
B29: 東野分館 | C29: 11439 | D29: 6866 | F29: 246 | G29: 222 | H29: 160 | I29: 0 | J29: 11439 | K29: 100 | L29: 434 | M29: 7 | P29: 無 | U29: 羽場分館
B30: 座光寺分館 | C30: 8596 | D30: 5074 | F30: 209 | G30: 194 | H30: 109 | I30: 0 | J30: 8596 | K30: 100 | L30: 124 | M30: 7 | P30: 無 | U30: 丸山分館
B31: 松尾分館 | C31: 19824 | D31: 12653 | F31: 421 | G31: 363 | H31: 244 | I31: 0 | J31: 19824 | K31: 100 | L31: 217 | M31: 8 | P31: 無 | U31: 東野分館
B32: 下久堅分館 | C32: 13353 | D32: 8988 | F32: 287 | G32: 270 | H32: 213 | I32: 0 | J32: 13353 | K32: 100 | L32: 261 | M32: 5 | P32: 無 | U32: 座光寺分館
B33: 上久堅分館 | C33: 10250 | D33: 6482 | F33: 214 | G33: 193 | H33: 137 | I33: 0 | J33: 10250 | K33: 100 | L33: 197 | M33: 8 | P33: 無 | U33: 松尾分館
B34: 千代分館 | C34: 14529 | D34: 9505 | F34: 310 | G34: 286 | H34: 196 | I34: 0 | J34: 14529 | K34: 100 | L34: 278 | M34: 6 | P34: 無 | U34: 下久堅分館
B35: 龍江分館 | C35: 10990 | D35: 7946 | F35: 226 | G35: 201 | H35: 156 | I35: 0 | J35: 10990 | K35: 100 | L35: 189 | M35: 5 | P35: 無 | U35: 上久堅分館
B36: 竜丘分館 | C36: 19017 | D36: 11033 | F36: 407 | G36: 377 | H36: 243 | I36: 0 | J36: 19017 | K36: 100 | L36: 310 | M36: 11 | P36: 無 | U36: 千代分館
B37: 川路分館 | C37: 11897 | D37: 7898 | F37: 301 | G37: 234 | H37: 213 | I37: 0 | J37: 11897 | K37: 100 | L37: 126 | M37: 6 | P37: 無 | U37: 龍江分館
B38: 三穂分館 | C38: 11393 | D38: 7659 | F38: 255 | G38: 236 | H38: 183 | I38: 0 | J38: 11393 | K38: 100 | L38: 516 | M38: 7 | P38: 無 | U38: 竜丘分館
B39: 山本分館 | C39: 12963 | D39: 8976 | F39: 270 | G39: 225 | H39: 192 | I39: 0 | J39: 12963 | K39: 100 | L39: 52 | M39: 10 | P39: 無 | U39: 川路分館
B40: 伊賀良分館 | C40: 25904 | D40: 15260 | F40: 459 | G40: 427 | H40: 226 | I40: 0 | J40: 25904 | K40: 100 | L40: 165 | M40: 11 | P40: 無 | U40: 三穂分館
B41: 上村分館 | C41: 6945 | D41: 4267 | F41: 225 | G41: 210 | H41: 141 | I41: 0 | J41: 6945 | K41: 100 | L41: 49 | M41: 4 | P41: 無 | U41: 山本分館
B42: 南信濃分館 | C42: 9279 | D42: 4991 | F42: 282 | G42: 188 | H42: 123 | I42: 0 | J42: 9279 | K42: 100 | L42: 132 | M42: 7 | P42: 無 | U42: 伊賀良分館
A43: 飯田市立上郷 | C43: 193225 | D43: 82042 | E43: 1344 | F43: 3794 | G43: 3393 | H43: 2323 | I43: 14 | J43: 78518 | K43: 40.63552853 | L43: 117 | M43: 73 | N43: 11 | P43: 有 | Q43: 日下部文庫・黒田文庫 | U43: 上村分館
A44: 飯田市立鼎 | C44: 26778 | D44: 14342 | F44: 800 | G44: 739 | H44: 326 | I44: 0 | J44: 25380 | K44: 94.77929644 | L44: 204 | M44: 42 | N44: 7 | P44: 無 | U44: 南信濃分館
A45: 諏訪市 | C45: 206190 | D45: 39579 | E45: 965 | F45: 7059 | G45: 4601 | H45: 1694 | I45: 4 | J45: 134223 | K45: 65.09675542 | L45: 2336 | M45: 56 | N45: 11 | O45: =(C45+C46)/S45 -> 5.326989801 | P45: 無 | S45: 47555 | T45: 諏訪市
B46: 信州風樹文庫 | C46: 47135 | D46: 6891 | E46: 24 | F46: 275 | G46: 3 | H46: 28 | I46: 0 | J46: 41474 | K46: 87.98981648 | L46: 0 | M46: 9 | N46: 2 | O46: =C46/S46 ->  | P46: 無 | U46: 信州風樹文庫
A47: 市立須坂 | C47: 209230 | D47: 54049 | F47: 4831 | G47: 4641 | H47: 1391 | I47: 0 | J47: 107887 | K47: 51.56382928 | L47: 1275 | M47: 72 | N47: 11 | O47: =C47/S47 -> 4.283374619 | P47: 有 | Q47: デイジー図書119点 | S47: 48847 | T47: 市立須坂
A48: 市立小諸 | C48: 182717 | D48: 42962 | E48: 827 | F48: 5105 | G48: 4313 | H48: 975 | I48: 2 | J48: 103515 | K48: 56.65318498 | L48: 96 | M48: 114 | N48: 10 | O48: =C48/S48 -> 4.51019451 | P48: 無 | S48: 40512 | T48: 市立小諸
A49: 伊那市立伊那 | C49: 220704 | D49: 60791 | E49: 447 | F49: 2755 | G49: 2514 | H49: 666 | I49: 0 | J49: 138026 | K49: 62.53896622 | L49: 5554 | M49: 120 | N49: 20 | O49: =(C49+C50)/S49 -> 4.804217381 | P49: 無 | S49: 64495 | T49: 伊那市立伊那
A50: 伊那市立高遠町 | C50: 89144 | D50: 24426 | E50: 0 | F50: 1458 | G50: 951 | H50: 383 | I50: 0 | J50: 69802 | K50: 78.30252176 | L50: 2579 | M50: 13 | N50: 7 | O50: =C50/S50 ->  | P50: 無 | T50: 伊那市立高遠町
A51: 駒ケ根市立 | C51: 167332 | D51: 45408 | E51: 668 | F51: 3937 | G51: 3606 | H51: 1443 | I51: 2 | J51: 99338 | K51: 59.36581168 | L51: 2114 | M51: 113 | N51: 11 | O51: =(C51+C52+C53)/S51 -> 5.740892488 | P51: 有 | Q51: 竹村文庫、加島文庫 | S51: 31485 | T51: 駒ケ根市立
B52: 東伊那分館 | C52: 6625 | D52: 4754 | E52: 3 | F52: 72 | G52: 46 | H52: 57 | I52: 1 | J52: 6625 | K52: 100 | L52: 14 | M52: 10 | N52: 0 | O52: =C52/S52 ->  | P52: 無 | U52: 東伊那分館
B53: 中沢分館 | C53: 6795 | D53: 4626 | E53: 1 | F53: 72 | G53: 28 | H53: 47 | I53: 0 | J53: 6795 | K53: 100 | L53: 65 | M53: 7 | N53: 0 | O53: =C53/S53 ->  | P53: 無 | U53: 中沢分館
A54: 中野市立 | C54: 239168 | D54: 53858 | F54: 3675 | G54: 3245 | H54: 870 | I54: 0 | J54: 90035 | K54: 37.6450863 | L54: 86 | M54: 49 | N54: 12 | O54: =(C54+C55+C56+C57)/S54 -> 6.873757552 | P54: 無 | S54: 41048 | T54: 中野市立
B55: 北部分館 | C55: 8807 | D55: 5181 | F55: 135 | G55: 91 | H55: 43 | I55: 0 | J55: 6958 | K55: 79.00533666 | L55: 0 | M55: 2 | N55: 0 | O55: =C55/S55 ->  | P55: 無 | U55: 北部分館
B56: 西部分館 | C56: 7897 | D56: 4866 | F56: 150 | G56: 98 | H56: 71 | I56: 0 | J56: 5703 | K56: 72.21729771 | L56: 1 | M56: 2 | N56: 0 | O56: =(C56+C57)/S56 ->  | P56: 無 | U56: 西部分館
B57: 豊田分館 | C57: 26282 | D57: 9063 | F57: 442 | G57: 323 | H57: 214 | I57: 0 | J57: 12256 | K57: 46.63267636 | L57: 1 | M57: 3 | N57: 0 | O57: =C57/S57 ->  | P57: 無 | U57: 豊田分館
A58: 市立大町 | C58: 161356 | D58: 41751 | E58: 523 | F58: 4065 | G58: 3076 | H58: 1406 | I58: 12 | J58: 118279 | K58: 73.30313097 | L58: 778 | M58: 53 | N58: 13 | O58: =C58/S58 -> 6.45191731 | P58: 無 | S58: 25009 | T58: 市立大町
A59: 市立飯山 | C59: 134925 | D59: 31270 | E59: 380 | F59: 4042 | G59: 2071 | H59: 753 | I59: 6 | J59: 65892 | K59: 48.83602001 | L59: 2572 | M59: 51 | N59: 7 | O59: =C59/S59 -> 7.262622457 | P59: 無 | S59: 18578 | T59: 市立飯山
A60: 茅野市 | C60: 208096 | D60: 81988 | E60: 887 | F60: 5674 | G60: 4950 | H60: 1831 | I60: 4 | J60: 150983 | K60: 72.55449408 | L60: 6761 | M60: 115 | N60: 7 | O60: =C60/S60 -> 3.762765804 | P60: 無 | S60: 55304 | T60: 茅野市
A61: 塩尻市立 | C61: 421074 | D61: 89845 | E61: 4505 | F61: 11233 | G61: 9706 | H61: 2660 | I61: 89 | J61: 203665 | K61: 48.36798282 | L61: 6500 | M61: 446 | N61: 22 | O61: =(C61+C62+C63+C64+C65+C66+C67+C68+C69)/S61 -> 7.760161682 | P61: 無 | S61: 66303 | T61: 塩尻市立
B62: 広丘図書館 | C62: 31308 | D62: 11578 | E62: 275 | F62: 1819 | G62: 1699 | H62: 805 | I62: 6 | J62: 31308 | K62: 100 | O62: =C62/S62 ->  | U62: 広丘図書館
B63: 北小野分館 | C63: 8273 | D63: 3641 | E63: 3 | F63: 256 | G63: 238 | H63: 92 | I63: 0 | J63: 8273 | K63: 100 | U63: 北小野分館
B64: 片丘分館 | C64: 6475 | D64: 3139 | E64: 5 | F64: 205 | G64: 197 | H64: 54 | I64: 0 | J64: 6475 | K64: 100 | U64: 片丘分館
B65: 塩尻東分館 | C65: 9058 | D65: 4048 | E65: 12 | F65: 396 | G65: 387 | H65: 140 | I65: 0 | J65: 9058 | K65: 100 | U65: 塩尻東分館
B66: 宗賀分館 | C66: 8839 | D66: 4733 | E66: 11 | F66: 290 | G66: 277 | H66: 117 | I66: 0 | J66: 8839 | K66: 100 | U66: 宗賀分館
B67: 洗馬分館 | C67: 8231 | D67: 3542 | E67: 5 | F67: 351 | G67: 332 | H67: 97 | I67: 0 | J67: 8231 | K67: 100 | U67: 洗馬分館
B68: 吉田分館 | C68: 7512 | D68: 3817 | E68: 4 | F68: 389 | G68: 378 | H68: 103 | I68: 0 | J68: 7512 | K68: 100 | U68: 吉田分館
B69: 楢川分館 | C69: 13752 | D69: 4719 | E69: 78 | F69: 251 | G69: 225 | H69: 84 | I69: 0 | J69: 13752 | K69: 100 | N69: 2 | U69: 楢川分館
A70: 佐久市立中央 | C70: 200264 | D70: 57252 | E70: 1451 | F70: 4976 | G70: 4846 | H70: 1761 | I70: 0 | J70: 142874 | K70: 71.34282747 | L70: 4545 | M70: 72 | N70: 14 | O70: =(C70+C71+C72+C73+C74)/S70 -> 4.525412236 | P70: 無 | S70: 97335 | T70: 佐久市中央
B71: サングリモ中込 | C71: 27807 | D71: 9636 | E71: 0 | F71: 1123 | G71: 1076 | H71: 413 | I71: 0 | J71: 23850 | K71: =J71/C71*100 -> 85.7697702 | L71: 417 | M71: 12 | N71: 6 | O71: =C71/S71 ->  | P71: 無 | U71: サングリモ中込
A72: 佐久市立臼田 | C72: 71684 | D72: 28921 | E72: 140 | F72: 2184 | G72: 2092 | H72: 962 | I72: 0 | J72: 56386 | K72: 78.659115 | L72: 1450 | M72: 27 | N72: 7 | O72: =C72/S72 ->  | P72: 無 | T72: 佐久市立臼田
A73: 佐久市立浅科 | C73: 77580 | D73: 30093 | E73: 470 | F73: 2462 | G73: 2382 | H73: 855 | I73: 0 | J73: 61766 | K73: 79.61588038 | L73: 2981 | M73: 40 | N73: 37 | O73: =C73/S73 ->  | P73: 無 | T73: 佐久市立浅科
A74: 佐久市立望月 | C74: 63146 | D74: 26009 | F74: 1831 | G74: 1699 | H74: 714 | I74: 0 | J74: 52464 | K74: 83.08364742 | L74: 1009 | M74: 22 | N74: 5 | O74: =C74/S74 ->  | P74: 無 | T74: 佐久市立望月
A75: 千曲市立更埴 | C75: 131345 | D75: 36988 | E75: 387 | F75: 2706 | G75: 2371 | H75: 955 | I75: 0 | J75: 75165 | K75: 57.22714987 | L75: 1870 | M75: 41 | N75: 10 | O75: =(C75+C76+C77)/S75 -> 4.098328485 | P75: 無 | S75: 58091 | T75: 千曲市立更埴
B76: 更埴西 | C76: 18579 | D76: 3923 | E76: 2 | F76: 1859 | G76: 1040 | H76: 525 | I76: 0 | J76: 17523 | K76: 94.31616341 | L76: 58 | M76: 18 | N76: 3 | P76: 無 | U76: 千曲市立更埴西
A77: 千曲市立戸倉 | C77: 88152 | D77: 24789 | E77: 58 | F77: 2255 | G77: 2177 | H77: 926 | I77: 0 | J77: 45322 | K77: 51.41346765 | L77: 11205 | M77: 42 | N77: 9 | P77: 無 | T77: 千曲市立戸倉
A78: 東御市立 | C78: 163997 | D78: 67444 | E78: 381 | F78: 4201 | G78: 3743 | H78: 1704 | I78: 8 | J78: 116027 | K78: 70.74946493 | L78: 1394 | M78: 67 | N78: 17 | O78: =C78/S78 -> 5.554889408 | P78: 無 | S78: 29523 | T78: 東御市立
A79: 安曇野市中央 | C79: 221916 | D79: 58339 | E79: 1492 | F79: 5334 | G79: 4343 | H79: 1185 | I79: 6 | J79: 147503 | K79: 66.46794283 | L79: 910 | M79: 136 | N79: 16 | O79: =(C79+C80+C81+C82+C83)/S79 -> 4.849166202 | P79: 無 | S79: 93308 | T79: 安曇野市中央
B80: 豊科 | C80: 84447 | D80: 23662 | E80: 443 | F80: 1660 | G80: 1331 | H80: 579 | I80: 1 | J80: 70533 | K80: 83.52339337 | L80: 1097 | M80: 42 | N80: 14 | P80: 有 | Q80: 山岳関係寄贈書 | U80: 豊科
B81: 三郷 | C81: 51875 | D81: 19677 | E81: 211 | F81: 1709 | G81: 1493 | H81: 767 | I81: 0 | J81: 45956 | K81: 88.58987952 | L81: 606 | M81: 40 | N81: 7 | P81: 無 | U81: 三郷
B82: 堀金 | C82: 45341 | D82: 17043 | E82: 269 | F82: 1218 | G82: 1054 | H82: 787 | I82: 9 | J82: 37292 | K82: 82.24785514 | L82: 140 | M82: 41 | N82: 5 | P82: 無 | U82: 堀金
B83: 明科 | C83: 48887 | D83: 14741 | E83: 132 | F83: 1172 | G83: 981 | H83: 362 | I83: 1 | J83: 35475 | K83: 72.56530366 | L83: 839 | M83: 40 | N83: 7 | P83: 無 | U83: 明科
A84: 小海町 | C84: 51521 | D84: 9447 | E84: 57 | F84: 2272 | G84: 1782 | H84: 725 | I84: 0 | J84: 41157 | K84: 79.88393082 | L84: 23 | M84: 30 | N84: 7 | O84: =C84/S84 -> 12.52333495 | P84: 有 | Q84: 井出正義文庫 | S84: 4114 | T84: 小海町
A85: 佐久穂町立 | C85: 99099 | D85: 27616 | E85: 100 | F85: 2002 | G85: 1708 | H85: 609 | I85: 0 | J85: 84698 | K85: 85.46806729 | L85: 597 | M85: 90 | N85: 11 | O85: =C85/S85 -> 10.07308396 | P85: 無 | S85: 9838 | T85: 佐久穂町
A86: 軽井沢町立中軽井沢 | C86: 83299 | D86: 22048 | E86: 1130 | F86: 3419 | G86: 2907 | H86: 957 | I86: 92 | J86: 77102 | K86: 92.56053494 | L86: 1402 | M86: 94 | N86: 18 | O86: =(C86+C87)/S86 -> 6.672450641 | P86: 無 | S86: 19652 | T86: 軽井沢町立
A87: 軽井沢町立離山 | C87: 47828 | D87: 2596 | E87: 1754 | F87: 114 | G87: 10 | I87: 0 | J87: 45022 | K87: 94.13314377 | L87: 1326 | P87: 無 | T87: 軽井沢町立
A88: 御代田町立 | C88: 100029 | D88: 25392 | E88: 387 | F88: 3556 | G88: 2815 | H88: 968 | I88: 2 | J88: 55941 | K88: 55.92478181 | L88: 733 | M88: 81 | N88: 8 | O88: =C88/S88 -> 6.264341182 | S88: 15968 | T88: 御代田町立
A89: 下諏訪町立 | C89: 126670 | D89: 27866 | E89: 371 | F89: 4025 | G89: 3143 | H89: 875 | I89: 1 | J89: 91453 | K89: 72.1978369 | L89: 1814 | M89: 67 | N89: 8 | O89: =C89/S89 -> 6.843697661 | P89: 無 | S89: 18509 | T89: 下諏訪町立
A90: 富士見町 | C90: 156098 | D90: 37866 | E90: 589 | F90: 3647 | G90: 3065 | H90: 709 | I90: 0 | J90: 91558 | K90: 58.65417879 | L90: 2068 | M90: 136 | N90: 10 | O90: =C90/S90 -> 11.24544341 | P90: 無 | S90: 13881 | T90: 富士見町
A91: 辰野町立辰野 | C91: 69834 | D91: 24103 | E91: - | F91: 2906 | G91: 2729 | H91: 845 | I91: 0 | J91: 69834 | K91: 100 | L91: 1317 | M91: 51 | N91: 11 | O91: =C91/S91 -> 3.918855219 | P91: 無 | S91: 17820 | T91: 辰野町立辰野
A92: 箕輪町 | C92: 67928 | D92: 24809 | E92: 0 | F92: 3488 | G92: 3359 | H92: 1186 | I92: 0 | J92: 58271 | K92: 85.78347662 | L92: 5100 | M92: 85 | N92: 8 | O92: =C92/S92 -> 2.749676166 | P92: 無 | S92: 24704 | T92: 箕輪町
A93: 飯島町 | C93: 82252 | D93: 34516 | E93: 208 | F93: 1804 | G93: 1490 | H93: 871 | I93: 0 | J93: 47511 | K93: 57.76272917 | L93: 43 | M93: 67 | N93: 6 | O93: =C93/S93 -> 9.439063576 | P93: 無 | S93: 8714 | T93: 飯島町
A94: 松川町 | C94: 131020 | D94: 42701 | E94: 4 | F94: 5152 | G94: 4677 | H94: 1643 | I94: 0 | J94: 75386 | K94: 57.53778049 | L94: 1512 | M94: 47 | N94: 4 | O94: 10.71212493 | P94: 無 | S94: 12231 | T94: 松川町
A95: 高森町立 | C95: 91872 | D95: 27803 | E95: 87 | F95: 3038 | G95: 2423 | H95: 998 | I95: 0 | J95: 50598 | K95: 55.07445141 | L95: 5339 | M95: 77 | N95: 7 | O95: 7.254007106 | P95: 無 | S95: 12665 | T95: 高森町立
A96: 阿南町立 | C96: 118344 | D96: 58480 | E96: 172 | F96: 2019 | G96: 2019 | H96: 487 | I96: 1 | J96: 74424 | K96: 62.88785236 | L96: 1628 | M96: 48 | N96: 4 | O96: 29.46079164 | P96: 無 | S96: 4017 | T96: 阿南町立
A97: 木曽町図書館 | C97: 47920 | D97: 17584 | E97: - | F97: 2371 | G97: 2097 | H97: 498 | I97: - | J97: 39989 | L97: 3 | M97: 46 | N97: 9 | O97: =(C97+C98+C99+C100)/S97 -> 5.054278289 | P97: 無 | S97: 10004 | T97: 木曽町
B98: 日義分館 | C98: 1020 | D98: 510 | P98: 無 | U98: 日義分館
B99: 開田分館 | C99: 934 | D99: 409 | P99: 無 | U99: 開田分館
B100: 三岳分館 | C100: 689 | D100: 279 | P100: 無 | U100: 三岳分館
A101: 池田町 | C101: 77089 | D101: 29976 | E101: - | F101: 2597 | G101: 2053 | H101: 800 | I101: 0 | J101: 48681 | K101: =J101/C101*100 -> 63.14908742 | L101: 42 | M101: 40 | N101: 5 | O101: 8.588346702 | P101: 無 | S101: 8976 | T101: 池田町
A102: 坂城町立 | C102: 129089 | D102: 36161 | E102: 116 | F102: 3603 | G102: 2403 | H102: 1614 | I102: 4 | J102: 63575 | K102: 49.24896777 | L102: 1152 | M102: 46 | N102: 7 | O102: 9.585579565 | P102: 無 | S102: 13467 | T102: 坂城町立
A103: 小布施町立 | C103: 100722 | D103: 22725 | E103: 86 | F103: 2287 | G103: 2043 | H103: 623 | I103: 0 | J103: 58921 | K103: 58.49863982 | L103: 1413 | M103: 61 | N103: 13 | O103: 9.461018223 | P103: 有 | Q103: 鴻山文庫 | S103: 10646 | T103: 小布施町立
A104: 山ノ内町立蟻川 | C104: 90941 | D104: 29183 | E104: 2000 | F104: 1634 | G104: 1437 | H104: 620 | I104: 0 | J104: 51892 | K104: 57.06117153 | L104: 776 | M104: 27 | N104: 25 | O104: 8.43765077 | P104: 無 | S104: 10778 | T104: 山ノ内町立蟻川
A105: 川上村文化センター | C105: 59597 | D105: 13931 | E105: 0 | F105: 1972 | G105: 1841 | H105: 409 | I105: 0 | J105: 35731 | K105: 59.95436012 | L105: 598 | M105: 49 | N105: 4 | O105: 15.34818439 | P105: 無 | S105: 3883 | T105: 川上村文化センター
A106: 南牧村 | C106: 52623 | D106: 12912 | E106: 1500 | F106: 1348 | G106: 1294 | H106: 261 | I106: 15 | J106: 26846 | K106: 51.01571556 | L106: 1 | M106: 43 | N106: 4 | O106: 17.14104235 | P106: 無 | S106: 3070 | T106: 南牧村
A107: 南相木村立ふれあい | C107: 42252 | D107: 11170 | F107: 1893 | G107: 1402 | H107: 293 | I107: 0 | J107: 42252 | K107: 100 | L107: 1895 | M107: 21 | N107: 7 | O107: 46.17704918 | P107: 無 | S107: 915 | T107: 南相木村立
A108: 青木村 | C108: 52206 | D108: 15866 | F108: 1815 | G108: 1519 | H108: 533 | I108: 0 | J108: 40961 | K108: 78.46033023 | L108: 1531 | M108: 35 | N108: 6 | O108: 13.16007058 | P108: 有 | Q108: 小川原文庫 | S108: 3967 | T108: 青木村
A109: 原村 | C109: 93510 | D109: 31592 | E109: 217 | F109: 3040 | G109: 2459 | H109: 845 | I109: 48 | J109: 93510 | K109: 100 | L109: 1503 | M109: 93 | N109: 8 | O109: 12.19642624 | P109: 無 | S109: 7667 | T109: 原村
A110: 南箕輪村 | C110: 95860 | D110: 44838 | F110: 3376 | G110: 3196 | H110: 1458 | I110: 0 | J110: 79779 | K110: 83.22449405 | L110: 4143 | M110: 59 | N110: 9 | O110: 5.960330784 | P110: 無 | S110: 16083 | T110: 南箕輪村
A111: 中川村 | C111: 73857 | D111: 28604 | E111: 14 | F111: 1855 | G111: 1700 | H111: 764 | I111: 0 | J111: 73857 | K111: 100 | L111: 735 | M111: 41 | N111: 7 | O111: 16.3871755 | P111: 無 | S111: 4507 | T111: 中川村
A112: 宮田村 | C112: 56266 | D112: 21861 | E112: 134 | F112: 2759 | G112: 2552 | H112: 1643 | I112: 0 | J112: 49954 | K112: 88.7818576 | L112: 1447 | M112: 72 | N112: 5 | O112: 6.676871959 | P112: 無 | S112: 8427 | T112: 宮田村
A113: 阿智村 | C113: 63971 | D113: 23784 | F113: 2658 | G113: 2513 | H113: 754 | I113: 0 | J113: 58421 | K113: 91.32419378 | L113: 1316 | M113: 55 | N113: 8 | O113: 10.97084548 | P113: 無 | S113: 5831 | T113: 阿智村
A114: 根羽村立 | C114: 4603 | F114: 82 | G114: 82 | H114: 32 | I114: 0 | K114: 0 | O114: 5.675709001 | P114: 無 | S114: 811 | T114: 根羽村立
A115: 下條村立 | C115: 90914 | D115: 36249 | E115: 143 | F115: 2728 | G115: 2638 | H115: 768 | I115: 8 | J115: 53355 | K115: 58.68733088 | L115: 1553 | M115: 183 | N115: 8 | O115: 27.0255648 | P115: 無 | S115: 3364 | T115: 下條村立
A116: 天龍村 | C116: 19877 | D116: 6170 | E116: 37 | F116: 270 | G116: 58 | H116: 20 | I116: 1 | J116: 19815 | K116: 99.6880817 | L116: 120 | M116: 0 | N116: 2 | O116: 18.42168675 | P116: 無 | S116: 1079 | T116: 天龍村
A117: 喬木村立椋鳩十記念 | C117: 83284 | D117: 36419 | E117: 416 | F117: 1760 | G117: 1574 | H117: 812 | I117: 0 | J117: 60035 | K117: 72.08467413 | L117: 1087 | M117: 38 | N117: 3 | O117: 14.50688033 | P117: 無 | S117: 5741 | T117: 喬木村立椋鳩十記念
A118: 豊丘村 | C118: 74842 | D118: 36063 | F118: 2357 | G118: 2290 | H118: 1017 | I118: 0 | K118: 0 | M118: 28 | N118: 7 | O118: 11.88345507 | P118: 無 | S118: 6298 | T118: 豊丘村
A119: 大桑村 | C119: 13228 | D119: 2276 | E119: 0 | F119: 4180 | G119: 4160 | H119: 619 | I119: 0 | J119: 13228 | L119: 0 | M119: 17 | N119: 7 | O119: 4.10935073 | P119: 無 | S119: 3219 | T119: 大桑村
A120: 山形村 | C120: 36203 | D120: 12715 | E120: 53 | F120: 1414 | G120: 1291 | H120: 479 | I120: 6 | J120: 27013 | K120: 74.61536337 | L120: 586 | M120: 32 | N120: 0 | O120: 4.383991281 | S120: 8258 | T120: 山形村
A121: 村立朝日村 | C121: 37904 | D121: 10628 | E121: 120 | F121: 650 | G121: 560 | H121: 233 | I121: 0 | J121: 27587 | K121: 72.78123681 | L121: 33 | M121: 5 | N121: 7 | O121: 9.23811845 | P121: 無 | S121: 4103 | T121: 村立朝日村
A122: 筑北村 | C122: 33834 | D122: 7724 | E122: 65 | F122: 1157 | G122: 633 | H122: 125 | I122: 0 | J122: 21698 | K122: 64.13075604 | L122: 167 | M122: 29 | N122: 2 | O122: 8.576425856 | P122: 無 | S122: 3945 | T122: 筑北村
A123: 松川村 | C123: 79595 | D123: 34666 | F123: 2819 | G123: 1230 | H123: 922 | I123: 0 | J123: 65400 | K123: 82.1659652 | L123: 0 | M123: 37 | N123: 8 | O123: 8.369610936 | P123: 無 | S123: 9510 | T123: 松川村
A124: 白馬村 | C124: 52332 | D124: 11532 | E124: 929 | F124: 1363 | G124: 899 | H124: 376 | I124: 13 | J124: 26470 | K124: 50.58090652 | L124: 3126 | M124: 19 | N124: 5 | O124: 6.16904397 | P124: 無 | S124: 8483 | T124: 白馬村
A125: 小谷村 | C125: 32727 | D125: 10032 | E125: 74 | F125: 714 | G125: 642 | H125: 180 | I125: 1 | J125: 24589 | K125: 75.13368167 | L125: 833 | M125: 24 | N125: 3 | O125: =C125/S125 -> 12.84923439 | P125: 無 | S125: 2547 | T125: 小谷村
A126: ライブラリー８２ | C126: 31699 | F126: 171 | I126: 0 | J126: 30283 | K126: 95.53298211 | L126: 3476 | P126: 無 | T126: ライブラリー８２
A127: 合計 | C127: =SUM(C7:C126) -> 11365759 | D127: 3214226 | E127: 46903 | F127: 304004 | G127: 264796 | H127: 86830 | I127: 786 | J127: 6627801 | K127: =J127/C127*100 -> 58.31375626 | L127: =SUM(L7:L126) -> 179676 | M127: =SUM(M7:M126) -> 6023 | N127: =SUM(N7:N126) -> 900 | O127: =C127/S7 -> 5.661233773 | S127: =SUM(S8:S126) -> 1941359 | V127: =ROUND(J126/C126*100,0) -> 96
A129: ※ 人口１人当蔵書冊数＝蔵書冊数/奉仕対象人口
A131: ※合計の数値は、県全体の図書館の蔵書数/県人口
